[Event "GER-ch Youth U12 2020"]
[Site "Willingen"]
[Date "2020.10.27"]
[Round "1.3"]
[White "Deschler, Arne"]
[Black "Haubold, Sebastian Marcel"]
[Result "1-0"]
[ECO "C23"]
[WhiteElo "1671"]
[BlackElo "1769"]
[Annotator "NA RC"]
[PlyCount "73"]
[EventDate "2020.10.27"]
[EventType "swiss"]
[EventRounds "7"]
[EventCountry "GER"]
[SourceTitle "playchess.com"]
[Source "ChessBase"]
[SourceQuality "1"]
[TimeControl "40/5400+30:1800+30"]

1. e4 {[%emt 0:00:00]} e5 {[%emt 0:00:00]} 2. Bc4 {[%emt 0:00:00]} Bc5 {[%emt 0:01:29]} 3. Nc3 {[%emt 0:00:11]} Nf6 {[%emt 0:00:35]} 4. d3 {[%emt 0:00:54]} h6 {[%emt 0:01:57]} 5. Be3 {[%emt 0:02:44]} Bb6 {[%emt 0:02:32]} 6. h3 {[%emt 0:04:56]} O-O {[%emt 0:05:20]} 7. Nge2 {[%emt 0:00:58]} Bxe3 {[%emt 0:02:44]} 8. fxe3 {[%emt 0:00:32]} c6 {[%emt 0:01:02]} 9. Bb3 {[%emt 0:04:58]} d5 {[%emt 0:04:54]} 10. exd5 {[%emt 0:03:52]} cxd5 {[%emt 0:03:55]} 11. Ng3 {[%emt 0:02:55]} Be6 {[%emt 0:06:12]} 12. O-O {[%emt 0:03:57]} Qd7 {[%emt 0:10:34]} 13. Kh2 {[%emt 0:05:48]} Nc6 {[%emt 0:05:50]} 14. Nce2 {[%emt 0:06:38]} Rac8 {[%emt 0:06:38]} 15. c3 {[%emt 0:03:55]} b5 {[%emt 0:03:04]} 16. a3 {[%emt 0:02:40]} a5 {[%emt 0:02:12]} 17. d4 {[%emt 0:05:22]} e4 {[%emt 0:03:08]} 18. Qd2 {[%emt 0:03:37]} a4 {[%emt 0:01:05]} 19. Ba2 {[%emt 0:03:31]} Na5 {[%emt 0:01:22]} 20. Rxf6 {[%emt 0:10:28]} gxf6 {[%emt 0:00:24]} 21. Nh5 {[%emt 0:01:01]} Qe7 {[%emt 0:01:54]} 22. Rf1 {[%emt 0:00:31]} f5 {[%emt 0:00:09]} 23. Nef4 {[%emt 0:06:31]} Nc4 {[%emt 0:03:43]} 24. Qf2 {[%emt 0:04:14]} Rcd8 {[%emt 0:04:05]} 25. Bxc4 {[%emt 0:08:52]} bxc4 {[%emt 0:01:05]} 26. Qc2 {[%emt 0:00:54]} Kh8 {[%emt 0:06:17]} 27. Qxa4 {[%emt 0:01:25]} Qb7 {[%emt 0:00:19]} 28. Nf6 {[%emt 0:01:56]} Qxb2 {[%emt 0:02:23]} 29. Qd1 {[%emt 0:00:13]} Qb8 {[%emt 0:01:31]} 30. Qh5 {[%emt 0:00:23]} Kg7 {[%emt 0:00:05]} 31. Qh4 {[%emt 0:02:10]} Rh8 {[%emt 0:02:58]} 32. N6h5+ {[%emt 0:00:36]} Kf8 {[%emt 0:00:06]} 33. Qf6 {[%emt 0:00:12]} Rh7 {[%emt 0:00:11]} 34. Rb1 {[%emt 0:01:04]} Qd6 {[%emt 0:02:39]} 35. Rb6 {[%emt 0:02:42]} Qxb6 {[%emt 0:01:09]} 36. Ng6+ {[%emt 0:01:09]} Kg8 {[%emt 0:00:27]} 37. Qg7+ {[%emt 0:00:27]} 1-0

[Event "GER-ch Youth U12 2020"]
[Site "Willingen"]
[Date "2020.10.27"]
[Round "1.4"]
[White "Kempe, Caius Emilian"]
[Black "Weyerer, Noah"]
[Result "1-0"]
[ECO "C00"]
[WhiteElo "1840"]
[BlackElo "1536"]
[Annotator "NA RC"]
[PlyCount "42"]
[EventDate "2020.10.27"]
[EventType "swiss"]
[EventRounds "7"]
[EventCountry "GER"]
[SourceTitle "playchess.com"]
[Source "ChessBase"]
[SourceQuality "1"]
[TimeControl "40/5400+30:1800+30"]

1. e4 {[%emt 0:00:00]} e6 {[%emt 0:00:00]} 2. d4 {[%emt 0:00:00]} d5 {[%emt 0:00:00]} 3. Bd3 {[%emt 0:00:00]} Nf6 {[%emt 0:00:08]} 4. e5 {[%emt 0:00:01]} Nfd7 {[%emt 0:00:30]} 5. f4 {[%emt 0:00:19]} c5 {[%emt 0:00:27]} 6. c3 {[%emt 0:00:28] C01: French: Exchange Variation.} Nc6 {[%emt 0:01:01]} 7. Nf3 {[%emt 0:00:12]} Be7 {[%emt 0:02:23]} 8. O-O {[%emt 0:00:26]} cxd4 {[%emt 0:02:37]} 9. cxd4 {[%emt 0:00:29]} O-O {[%emt 0:03:02] [#]} 10. Kh1 $146 {[%emt 0:06:34]} ({Predecessor:} 10. a3 h6 11. f5 exf5 12. Bxf5 Bg5 13. Nxg5 hxg5 14. Qh5 g6 15. Bxg6 fxg6 16. Qxg6+ {0-1 (71) Dieckmann,R (1573)-Krueger,I (1307) Dortmund 2005}) 10... Nb4 {[%emt 0:04:13]} 11. Be2 {[%emt 0:02:21]} b5 {[%emt 0:06:43]} (11... f6 {[%emt 0:06:43]}) 12. Nc3 {[%emt 0:06:31]} a6 {[%emt 0:01:36]} 13. a3 {[%emt 0:02:32]} Nc6 {[%emt 0:00:28]} 14. Be3 {[%emt 0:02:53]} Bb7 {[%emt 0:02:00]} 15. Rc1 {[%emt 0:01:33]} Na5 {[%emt 0:02:34]} 16. Nd2 {[%emt 0:08:20]} Nb6 {[%emt 0:02:34]} 17. Rf3 {[%emt 0:08:08]} Nbc4 {[%emt 0:02:14]} 18. Bxc4 {[%emt 0:06:54]} dxc4 {[%emt 0:00:30]} 19. Rh3 {[%emt 0:00:45]} g6 {[%emt 0:01:47]} 20. Na4 {[%emt 0:05:21]} Bc8 $15 {[%emt 0:01:58]} (20... bxa4 $19 21. Qxa4 {[#]} Qd5 $1 {[%mdl 512]}) 21. Nc5 {[%emt 0:00:30]} Bd7 {[%emt 0:02:41]} 1-0

[Event "GER-ch Youth U12 2020"]
[Site "Willingen"]
[Date "2020.10.27"]
[Round "1.5"]
[White "Schreidl, Michael"]
[Black "Nitsche, Nikolai"]
[Result "1/2-1/2"]
[ECO "C10"]
[WhiteElo "1640"]
[BlackElo "1721"]
[Annotator "NA RC"]
[PlyCount "63"]
[EventDate "2020.10.27"]
[EventType "swiss"]
[EventRounds "7"]
[EventCountry "GER"]
[SourceTitle "playchess.com"]
[Source "ChessBase"]
[SourceQuality "1"]
[TimeControl "40/5400+30:1800+30"]

1. e4 {[%emt 0:00:00]} e6 {[%emt 0:00:20]} 2. d4 {[%emt 0:00:00]} d5 {[%emt 0:00:17]} 3. Nc3 {[%emt 0:00:00]} dxe4 {[%emt 0:00:04]} 4. Nxe4 {[%emt 0:00:00]} Be7 {[%emt 0:00:07]} 5. Nf3 {[%emt 0:00:00]} Nf6 {[%emt 0:00:14]} 6. Nxf6+ {[%emt 0:00:31]} Bxf6 {[%emt 0:00:15]} 7. Bd3 {[%emt 0:00:21]} Nd7 {[%emt 0:05:37]} 8. O-O {[%emt 0:01:33]} O-O {[%emt 0:01:38]} 9. Qe2 {[%emt 0:01:53]} Re8 {[%emt 0:09:56]} 10. Rd1 {[%emt 0:05:16]} Qe7 {[%emt 0:09:17]} 11. Re1 {[%emt 0:07:39]} c5 {[%emt 0:03:12]} 12. c3 {[%emt 0:09:59]} e5 {[%emt 0:05:00]} 13. dxe5 {[%emt 0:04:23]} Nxe5 {[%emt 0:01:32]} 14. Nxe5 {[%emt 0:01:47]} Bxe5 {[%emt 0:00:20]} 15. Bf4 {[%emt 0:05:49]} Bf6 {[%emt 0:08:23]} 16. Qxe7 {[%emt 0:03:44]} Rxe7 {[%emt 0:03:00]} 17. Bd6 {[%emt 0:06:04]} Rxe1+ {[%emt 0:02:18]} 18. Rxe1 {[%emt 0:00:08]} Be6 {[%emt 0:00:06]} 19. Bxc5 {[%emt 0:00:51]} Rd8 {[%emt 0:01:00]} 20. Bb1 {[%emt 0:12:55]} Rd2 {[%emt 0:02:34]} 21. Ba3 {[%emt 0:00:51]} g6 {[%emt 0:05:49]} 22. Be4 {[%emt 0:01:08]} b6 {[%emt 0:00:21]} 23. Bf3 {[%emt 0:01:34]} h5 {[%emt 0:06:26]} 24. Rd1 {[%emt 0:02:15]} Rxd1+ {[%emt 0:00:38]} 25. Bxd1 {[%emt 0:00:07]} Bxa2 {[%emt 0:00:03]} 26. Kf1 {[%emt 0:01:56]} Bd5 {[%emt 0:00:55]} 27. Bd6 {[%emt 0:02:09]} Bd8 {[%emt 0:01:06]} 28. Be2 {[%emt 0:01:19]} f6 {[%emt 0:00:35]} 29. Ba6 {[%emt 0:01:47]} Kf7 {[%emt 0:00:57]} 30. f3 {[%emt 0:01:05]} Ke6 {[%emt 0:00:34]} 31. Bb8 {[%emt 0:00:47]} Bc6 {[%emt 0:00:10]} 32. Bg3 {[%emt 0:06:21]} 1/2-1/2

[Event "GER-ch Youth U12 2020"]
[Site "Willingen"]
[Date "2020.10.27"]
[Round "1.6"]
[White "Möller, Maurin"]
[Black "Kieselbach, Jannik"]
[Result "1-0"]
[ECO "C07"]
[WhiteElo "1645"]
[BlackElo "1453"]
[Annotator "NA"]
[PlyCount "38"]
[EventDate "2020.10.27"]
[EventType "swiss"]
[EventRounds "7"]
[EventCountry "GER"]
[SourceTitle "playchess.com"]
[Source "ChessBase"]
[SourceQuality "1"]
[TimeControl "40/5400+30:1800+30"]

1. e4 {[%emt 0:00:00]} e6 {[%emt 0:00:00]} 2. d4 {[%emt 0:00:00]} d5 {[%emt 0:00:00]} 3. Nd2 {[%emt 0:00:00]} c5 {[%emt 0:00:00]} 4. c3 {[%emt 0:05:31]} Nc6 5. exd5 exd5 {[%emt 0:05:07]} 6. Ndf3 {[%emt 0:04:14]} cxd4 {[%emt 0:18:40]} 7. Nxd4 {[%emt 0:02:57]} Nxd4 {[%emt 0:03:32]} 8. Qxd4 {[%emt 0:00:46]} Ne7 {[%emt 0:02:04]} 9. Nf3 {[%emt 0:01:08]} f6 {[%emt 0:05:44]} 10. Bb5+ {[%emt 0:02:00]} Bd7 {[%emt 0:00:41]} 11. Bxd7+ {[%emt 0:00:08]} Qxd7 {[%emt 0:00:13]} 12. O-O {[%emt 0:00:23]} Nc6 {[%emt 0:01:27]} 13. Re1+ {[%emt 0:00:34]} Be7 {[%emt 0:01:16]} 14. Qa4 {[%emt 0:01:29]} O-O {[%emt 0:02:56]} 15. Nd4 {[%emt 0:01:20]} Rfd8 {[%emt 0:05:46]} 16. Be3 {[%emt 0:01:23]} Bd6 {[%emt 0:06:47]} 17. Qb3 {[%emt 0:00:30]} Kh8 {[%emt 0:02:19]} 18. g3 {[%emt 0:01:30]} Be5 {[%emt 0:09:03]} 19. Rad1 {[%emt 0:01:28]} Rg8 {[%emt 0:01:43]} 1-0

[Event "GER-ch Youth U12 2020"]
[Site "Willingen"]
[Date "2020.10.27"]
[Round "1.7"]
[White "Eichhorn, Valentin"]
[Black "Huber, Benedikt"]
[Result "1-0"]
[ECO "A22"]
[WhiteElo "1545"]
[BlackElo "2191"]
[Annotator "ChessBase"]
[PlyCount "143"]
[EventDate "2020.10.27"]
[EventType "swiss"]
[EventRounds "7"]
[EventCountry "GER"]
[SourceTitle "playchess.com"]
[Source "ChessBase"]
[SourceQuality "1"]
[TimeControl "40/5400+30:1800+30"]

1. c4 {[%emt 0:00:00]} e5 {[%emt 0:00:21]} 2. Nc3 {[%emt 0:00:04]} Nf6 {[%emt 0:00:20]} 3. g3 {[%emt 0:01:57]} Nc6 {[%emt 0:01:15]} 4. Bg2 {[%emt 0:01:26]} Bc5 {[%emt 0:01:06]} 5. e3 {[%emt 0:01:46]} d6 {[%emt 0:00:54]} 6. Nge2 {[%emt 0:01:42]} a6 {[%emt 0:01:45]} 7. a3 {[%emt 0:00:45]} Ba7 {[%emt 0:00:58]} 8. Nd5 {[%emt 0:05:07]} Be6 {[%emt 0:06:18]} 9. Qc2 {[%emt 0:07:27]} Qd7 {[%emt 0:11:18]} 10. Nec3 {[%emt 0:05:58]} Nd8 {[%emt 0:05:08]} 11. Nxf6+ {[%emt 0:01:32]} gxf6 {[%emt 0:00:09]} 12. Nd5 {[%emt 0:01:14]} Bxd5 {[%emt 0:05:38]} 13. cxd5 {[%emt 0:02:53]} Rc8 {[%emt 0:02:44]} 14. h4 {[%emt 0:03:50]} c6 {[%emt 0:01:47]} 15. Bh3 {[%emt 0:04:26]} Qc7 {[%emt 0:01:37]} 16. Bxc8 {[%emt 0:00:46]} Qxc8 {[%emt 0:00:04]} 17. b3 {[%emt 0:03:31]} Qd7 {[%emt 0:01:04]} 18. dxc6 {[%emt 0:02:39]} Nxc6 {[%emt 0:00:15]} 19. Bb2 {[%emt 0:00:57]} d5 {[%emt 0:03:45]} 20. d3 {[%emt 0:04:44]} d4 {[%emt 0:03:39]} 21. e4 {[%emt 0:03:30]} Qg4 {[%emt 0:05:55]} 22. Qe2 {[%emt 0:02:09]} Qe6 {[%emt 0:00:09]} 23. b4 {[%emt 0:03:57]} Bb6 {[%emt 0:09:18]} 24. O-O {[%emt 0:05:17]} Qh3 {[%emt 0:07:01]} 25. Qf3 {[%emt 0:01:33]} Rg8 {[%emt 0:01:09]} 26. Rfd1 {[%emt 0:04:30]} Qxh4 {[%emt 0:01:00]} 27. Kg2 {[%emt 0:02:24]} Qg5 {[%emt 0:04:32]} 28. Bc1 {[%emt 0:01:13]} Qg7 {[%emt 0:07:01]} 29. Rh1 {[%emt 0:02:07]} Na7 {[%emt 0:07:37]} 30. Bh6 {[%emt 0:02:41]} Qg6 {[%emt 0:00:22]} 31. Qf5 {[%emt 0:01:06]} Kd8 {[%emt 0:04:36]} 32. Qxg6 {[%emt 0:00:36]} hxg6 {[%emt 0:00:04]} 33. Bd2 {[%emt 0:00:17]} Ke7 {[%emt 0:02:28]} 34. Rac1 {[%emt 0:01:08]} Nc6 {[%emt 0:01:25]} 35. a4 {[%emt 0:01:25]} Na7 {[%emt 0:01:48]} 36. Rc2 {[%emt 0:01:27]} Kd6 {[%emt 0:00:40]} 37. Bc1 {[%emt 0:00:47]} Ke6 {[%emt 0:00:32]} 38. Bd2 {[%emt 0:01:21]} Re8 {[%emt 0:01:18]} 39. Re1 {[%emt 0:00:51]} g5 {[%emt 0:00:51]} 40. f4 {[%emt 0:02:02]} gxf4 {[%emt 0:01:22]} 41. gxf4 {[%emt 0:30:52]} Rg8+ {[%emt 0:30:19]} 42. Kf3 {[%emt 0:00:28]} Rh8 {[%emt 0:00:00]} 43. f5+ {[%emt 0:00:00]} Ke7 {[%emt 0:00:00]} 44. Rg1 {[%emt 0:00:00]} Rh3+ {[%emt 0:00:00]} 45. Rg3 {[%emt 0:00:00]} Rh2 {[%emt 0:00:00]} 46. b5 {[%emt 0:00:00]} Rh8 {[%emt 0:00:00]} 47. bxa6 {[%emt 0:00:00]} bxa6 {[%emt 0:00:00]} 48. Rb2 {[%emt 0:00:00]} Nc8 {[%emt 0:00:00]} 49. Bb4+ {[%emt 0:00:00]} Ke8 {[%emt 0:00:00]} 50. Rbg2 {[%emt 0:00:00]} Ne7 {[%emt 0:00:00]} 51. Rc2 {[%emt 0:00:25]} a5 {[%emt 0:01:48]} 52. Bd2 {[%emt 0:04:28]} Kd7 {[%emt 0:01:26]} 53. Rb2 {[%emt 0:01:23]} Bc7 {[%emt 0:01:32]} 54. Rb5 {[%emt 0:01:19]} Nc6 {[%emt 0:00:45]} 55. Kg2 {[%emt 0:01:16]} Ke7 {[%emt 0:00:36]} 56. Bc1 {[%emt 0:03:23]} Nb4 {[%emt 0:00:54]} 57. Ba3 {[%emt 0:00:57]} Ra8 {[%emt 0:01:12]} 58. Bxb4+ {[%emt 0:00:45]} axb4 {[%emt 0:00:05]} 59. Rxb4 {[%emt 0:00:15]} Ra7 {[%emt 0:00:20]} 60. Kf3 {[%emt 0:01:06]} Bd6 {[%emt 0:00:20]} 61. Rc4 {[%emt 0:00:11]} Rb7 {[%emt 0:00:39]} 62. Rg2 {[%emt 0:00:42]} Rb3 {[%emt 0:00:29]} 63. Rd2 {[%emt 0:01:06]} Ra3 {[%emt 0:00:16]} 64. Ke2 {[%emt 0:00:19]} Rb3 {[%emt 0:01:02]} 65. Rdc2 {[%emt 0:01:19]} Rb7 {[%emt 0:00:23]} 66. a5 {[%emt 0:01:58]} Ra7 67. Ra4 {[%emt 0:00:05]} Ra6 {[%emt 0:00:41]} 68. Rb2 {[%emt 0:02:14]} Ra7 {[%emt 0:01:19]} 69. a6 {[%emt 0:00:19]} Kd7 {[%emt 0:00:27]} 70. Rb7+ {[%emt 0:00:14]} Rxb7 {[%emt 0:00:03]} 71. axb7 {[%emt 0:00:34]} Kc6 {[%emt 0:00:57]} 72. Ra6+ {[%emt 0:00:33]} 1-0

[Event "GER-ch Youth U12 2020"]
[Site "Willingen"]
[Date "2020.10.27"]
[Round "1.8"]
[White "Navarro Jahnke, Leo"]
[Black "Berresheim, Nils"]
[Result "1-0"]
[ECO "A45"]
[WhiteElo "1686"]
[BlackElo "1534"]
[Annotator "NA RC"]
[PlyCount "191"]
[EventDate "2020.10.27"]
[EventType "swiss"]
[EventRounds "7"]
[EventCountry "GER"]
[SourceTitle "playchess.com"]
[Source "ChessBase"]
[SourceQuality "1"]
[TimeControl "40/5400+30:1800+30"]

1. d4 {[%emt 0:00:00]} Nf6 {[%emt 0:00:00]} 2. Bf4 {[%emt 0:00:00]} d5 {[%emt 0:00:10]} 3. e3 {[%emt 0:00:11]} c5 {[%emt 0:00:57]} 4. c3 {[%emt 0:00:24]} e6 {[%emt 0:01:31]} 5. Nd2 {[%emt 0:00:34]} Nc6 {[%emt 0:00:57]} 6. Ngf3 {[%emt 0:03:06]} Bd6 {[%emt 0:02:16]} 7. Bg3 {[%emt 0:02:02]} O-O {[%emt 0:03:28]} 8. Bd3 {[%emt 0:01:03]} b6 {[%emt 0:02:18]} 9. O-O {[%emt 0:05:15]} Bb7 {[%emt 0:01:55]} 10. Re1 {[%emt 0:06:27]} Bxg3 {[%emt 0:03:16]} 11. hxg3 {[%emt 0:00:14]} Re8 {[%emt 0:01:37]} 12. Qe2 {[%emt 0:04:01]} e5 {[%emt 0:02:45]} 13. dxe5 {[%emt 0:00:18]} Nxe5 {[%emt 0:01:02]} 14. Nxe5 {[%emt 0:00:32]} Rxe5 {[%emt 0:00:35]} 15. Nf3 {[%emt 0:02:55]} Re7 {[%emt 0:02:16]} 16. Rad1 {[%emt 0:05:24]} Qe8 {[%emt 0:06:04]} 17. Bb5 Bc6 {[%emt 0:00:51]} 18. Bxc6 {[%emt 0:02:43]} Qxc6 {[%emt 0:00:13]} 19. Qc2 {[%emt 0:03:08]} h6 {[%emt 0:03:57]} 20. c4 {[%emt 0:02:23]} dxc4 {[%emt 0:03:05]} 21. Qxc4 {[%emt 0:01:55]} Re4 {[%emt 0:02:38]} 22. Qc2 {[%emt 0:03:50]} Rae8 {[%emt 0:03:43]} 23. Nd4 {[%emt 0:04:05]} Qd7 {[%emt 0:10:29]} 24. Nf3 {[%emt 0:02:13]} Qe7 {[%emt 0:03:35]} 25. Nd2 {[%emt 0:02:24]} Re5 {[%emt 0:01:49]} 26. Nc4 {[%emt 0:00:46]} Rd5 {[%emt 0:01:42]} 27. Rxd5 {[%emt 0:06:58]} Nxd5 {[%emt 0:00:13]} 28. a3 {[%emt 0:09:19]} b5 {[%emt 0:03:30]} 29. Nd2 {[%emt 0:01:47]} Nb6 {[%emt 0:03:31]} 30. Rc1 {[%emt 0:03:14]} c4 {[%emt 0:02:46]} 31. Nf3 {[%emt 0:02:46]} a5 {[%emt 0:05:16]} 32. Nd4 {[%emt 0:01:46]} b4 {[%emt 0:01:19]} 33. axb4 {[%emt 0:08:57]} axb4 {[%emt 0:00:39]} 34. Ra1 Rc8 {[%emt 0:01:40]} 35. Qf5 {[%emt 0:04:02]} Qc5 {[%emt 0:02:40]} 36. Ra5 {[%emt 0:02:15]} Qxf5 {[%emt 0:01:51]} 37. Nxf5 {[%emt 0:00:04]} Kf8 {[%emt 0:01:36]} 38. Rb5 {[%emt 0:00:13]} c3 {[%emt 0:06:17]} 39. bxc3 {[%emt 0:01:25]} bxc3 {[%emt 0:00:32]} 40. Nd4 {[%emt 0:00:22]} Na4 {[%emt 0:03:50]} 41. Rb1 {[%emt 0:30:29]} Ke7 {[%emt 0:36:08]} 42. Kf1 {[%emt 0:02:24]} Kd6 {[%emt 0:00:00]} 43. Ke2 {[%emt 0:00:00]} Kd5 {[%emt 0:00:00]} 44. Kd3 {[%emt 0:00:00]} Nb2+ {[%emt 0:00:00]} 45. Kc2 {[%emt 0:00:00]} Kc4 {[%emt 0:00:00]} 46. Ne2 {[%emt 0:00:00]} Kb4 {[%emt 0:00:00]} 47. Nc1 {[%emt 0:00:00]} Ra8 {[%emt 0:00:00]} 48. Nd3+ {[%emt 0:00:00]} Kc4 {[%emt 0:01:37]} 49. Nxb2+ {[%emt 0:00:00]} cxb2 {[%emt 0:00:12]} 50. Rxb2 {[%emt 0:00:00]} Ra7 {[%emt 0:01:04]} 51. Kd2 {[%emt 0:00:00]} g6 {[%emt 0:01:26]} 52. Rc2+ {[%emt 0:00:00]} Kd5 {[%emt 0:00:37]} 53. Ke2 {[%emt 0:00:00]} Rb7 {[%emt 0:00:57]} 54. Rd2+ {[%emt 0:00:00]} Ke5 {[%emt 0:00:13]} 55. f4+ {[%emt 0:00:00]} Kf5 {[%emt 0:00:33]} 56. Kf3 {[%emt 0:00:00]} Rb3 {[%emt 0:01:10]} 57. Rd6 {[%emt 0:00:25]} h5 {[%emt 0:00:37]} 58. Ra6 {[%emt 0:01:44]} Rc3 {[%emt 0:00:50]} 59. Ra5+ {[%emt 0:01:52]} Kf6 {[%emt 0:00:21]} 60. Re5 {[%emt 0:00:57]} Ra3 {[%emt 0:01:04]} 61. g4 {[%emt 0:00:46]} hxg4+ 62. Kxg4 {[%emt 0:00:03]} Ra2 {[%emt 0:00:38]} 63. g3 {[%emt 0:00:24]} Ra3 {[%emt 0:00:39]} 64. Kf3 {[%emt 0:01:38]} Rb3 {[%emt 0:00:15]} 65. Rd5 {[%emt 0:00:17]} Ke6 {[%emt 0:00:37]} 66. Ra5 Kf6 {[%emt 0:01:10]} 67. Ra4 {[%emt 0:01:10]} Ke6 {[%emt 0:00:27]} 68. Ra6+ {[%emt 0:01:59]} Ke7 {[%emt 0:00:12]} 69. g4 {[%emt 0:00:39]} Rc3 {[%emt 0:01:03]} 70. g5 {[%emt 0:00:14]} Rb3 {[%emt 0:00:08]} 71. Ke4 {[%emt 0:01:13]} Rb4+ {[%emt 0:00:40]} 72. Kd5 {[%emt 0:00:25]} Rb5+ {[%emt 0:00:42]} 73. Kc4 {[%emt 0:00:46]} Rb1 {[%emt 0:00:31]} 74. Kd4 {[%emt 0:02:53]} Rb4+ {[%emt 0:00:38]} 75. Kc5 {[%emt 0:00:22]} Rb1 {[%emt 0:00:13]} 76. Ra4 {[%emt 0:00:35]} Rc1+ {[%emt 0:01:13]} 77. Rc4 {[%emt 0:00:17]} Ra1 {[%emt 0:00:02]} 78. Kd5 {[%emt 0:00:19]} Ra5+ {[%emt 0:00:43]} 79. Rc5 {[%emt 0:00:18]} Ra6 {[%emt 0:00:09]} 80. Rc7+ {[%emt 0:01:04]} Kf8 {[%emt 0:00:32]} 81. e4 {[%emt 0:00:14]} Kg7 {[%emt 0:00:38]} 82. e5 {[%emt 0:01:06]} Kf8 {[%emt 0:00:33]} 83. Rc6 {[%emt 0:01:24]} Ra4 {[%emt 0:01:52]} 84. Rc4 {[%emt 0:00:23]} Ra6 {[%emt 0:00:15]} 85. Rc6 {[%emt 0:01:20]} Ra4 {[%emt 0:00:09]} 86. e6 {[%emt 0:00:38]} Rxf4 {[%emt 0:01:29]} 87. Rc8+ {[%emt 0:00:12]} Ke7 {[%emt 0:00:31]} 88. Rc7+ {[%emt 0:00:08]} Ke8 {[%emt 0:01:06]} 89. Rxf7 {[%emt 0:00:55]} Ra4 {[%emt 0:01:09]} 90. Ke5 {[%emt 0:00:20]} Ra5+ {[%emt 0:00:34]} 91. Kf6 {[%emt 0:00:07]} Ra6 {[%emt 0:00:31]} 92. Rg7 {[%emt 0:00:18]} Kf8 {[%emt 0:00:25]} 93. Rxg6 {[%emt 0:00:17]} Rb6 {[%emt 0:00:18]} 94. Rh6 {[%emt 0:00:09]} Kg8 {[%emt 0:00:22]} 95. g6 {[%emt 0:00:07]} Ra6 {[%emt 0:00:54]} 96. g7 {[%emt 0:00:09]} 1-0

[Event "GER-ch Youth U12 2020"]
[Site "Willingen"]
[Date "2020.10.27"]
[Round "1.9"]
[White "Gaertner, Alessandro"]
[Black "Krüger, Arthur"]
[Result "1-0"]
[ECO "E61"]
[WhiteElo "1251"]
[BlackElo "1704"]
[Annotator "NA RC"]
[PlyCount "43"]
[EventDate "2020.10.27"]
[EventType "swiss"]
[EventRounds "7"]
[EventCountry "GER"]
[SourceTitle "playchess.com"]
[Source "ChessBase"]
[SourceQuality "1"]
[TimeControl "40/5400+30:1800+30"]

1. d4 {[%emt 0:00:00]} Nf6 {[%emt 0:00:00]} 2. c4 {[%emt 0:00:00]} g6 {[%emt 0:00:00]} 3. Nc3 {[%emt 0:00:12]} Bg7 {[%emt 0:00:00]} 4. Nf3 {[%emt 0:00:24]} O-O {[%emt 0:00:32]} 5. Bf4 {[%emt 0:00:14]} d6 {[%emt 0:00:19]} 6. h3 {[%emt 0:00:08]} c5 {[%emt 0:00:50]} 7. e3 {[%emt 0:00:35]} Na6 {[%emt 0:05:12]} 8. a3 {[%emt 0:01:52]} Qb6 {[%emt 0:08:08]} 9. Qd2 {[%emt 0:07:58]} Bf5 {[%emt 0:05:05]} 10. Nh4 {[%emt 0:05:05]} Bd7 {[%emt 0:15:48]} 11. g4 {[%emt 0:04:23]} cxd4 {[%emt 0:07:21]} 12. exd4 {[%emt 0:02:32]} e5 {[%emt 0:01:16]} 13. Be3 {[%emt 0:01:34]} Nxg4 {[%emt 0:16:03]} 14. Nd5 {[%emt 0:03:57]} Qb3 {[%emt 0:14:20]} 15. hxg4 {[%emt 0:04:16]} exd4 {[%emt 0:02:10]} 16. Ne7+ {[%emt 0:03:17]} Kh8 {[%emt 0:02:54]} 17. Bxd4 {[%emt 0:05:00]} Rfe8 {[%emt 0:05:15]} 18. Nhxg6+ {[%emt 0:04:08]} fxg6 {[%emt 0:01:36]} 19. Bxg7+ {[%emt 0:00:41]} Kxg7 {[%emt 0:00:29]} 20. Qd4+ {[%emt 0:00:16]} Kf7 {[%emt 0:02:37]} 21. Rxh7+ {[%emt 0:00:13]} Ke6 {[%emt 0:00:18]} 22. Qd5+ {[%emt 0:00:11]} 1-0

[Event "GER-ch Youth U12 2020"]
[Site "Willingen"]
[Date "2020.10.27"]
[Round "1.10"]
[White "Sauer, Tim"]
[Black "Cromm, Mika"]
[Result "0-1"]
[ECO "A06"]
[WhiteElo "1729"]
[BlackElo "1665"]
[Annotator "NA"]
[PlyCount "98"]
[EventDate "2020.10.27"]
[EventType "swiss"]
[EventRounds "7"]
[EventCountry "GER"]
[SourceTitle "playchess.com"]
[Source "ChessBase"]
[SourceQuality "1"]
[TimeControl "40/5400+30:1800+30"]

1. Nf3 {[%emt 0:00:00]} d5 {[%emt 0:00:00]} 2. g3 {[%emt 0:00:00]} Nf6 {[%emt 0:01:29]} 3. Bg2 {[%emt 0:00:00]} e6 {[%emt 0:00:52]} 4. O-O {[%emt 0:00:02]} Bd6 {[%emt 0:01:39]} 5. d3 {[%emt 0:00:48]} O-O {[%emt 0:01:04]} 6. Nbd2 {[%emt 0:00:13]} c6 {[%emt 0:03:35]} 7. e4 {[%emt 0:00:16]} e5 {[%emt 0:14:15]} 8. Re1 {[%emt 0:05:17]} dxe4 {[%emt 0:04:12]} 9. dxe4 {[%emt 0:01:42]} Be6 {[%emt 0:11:37]} 10. h3 {[%emt 0:06:02]} h6 {[%emt 0:00:41]} 11. Qe2 {[%emt 0:05:03]} Qc7 {[%emt 0:03:06]} 12. g4 {[%emt 0:01:53]} Nh7 {[%emt 0:04:43]} 13. Nf1 {[%emt 0:01:00]} b5 {[%emt 0:02:56]} 14. b3 {[%emt 0:01:01]} a6 {[%emt 0:00:26]} 15. Nh4 c5 {[%emt 0:03:04]} 16. Nf5 {[%emt 0:07:20]} c4 {[%emt 0:02:43]} 17. N1g3 {[%emt 0:08:02]} Kh8 {[%emt 0:04:45]} 18. g5 {[%emt 0:18:14]} hxg5 {[%emt 0:04:04]} 19. Qh5 {[%emt 0:04:19]} f6 {[%emt 0:09:29]} 20. h4 {[%emt 0:11:43]} Be7 {[%emt 0:03:56]} 21. Qg6 {[%emt 0:09:02]} Bd8 {[%emt 0:04:08]} 22. hxg5 {[%emt 0:00:50]} Rg8 {[%emt 0:02:36]} 23. gxf6 {[%emt 0:04:39]} gxf6 {[%emt 0:00:48]} 24. Qh5 {[%emt 0:01:48]} Bf7 {[%emt 0:03:26]} 25. Qh4 {[%emt 0:01:58]} Nc6 {[%emt 0:01:01]} 26. f4 {[%emt 0:04:50]} Rc8 {[%emt 0:02:18]} 27. Kf2 {[%emt 0:01:42]} cxb3 {[%emt 0:02:09]} 28. cxb3 {[%emt 0:01:06]} Nb4 {[%emt 0:00:17]} 29. Rh1 {[%emt 0:03:10]} Qc2+ {[%emt 0:03:03]} 30. Ne2 {[%emt 0:01:09]} Rxg2+ 31. Kxg2 {[%emt 0:00:15]} Qxe2+ {[%emt 0:01:30]} 32. Qf2 {[%emt 0:01:16]} Qxf2+ {[%emt 0:01:11]} 33. Kxf2 {[%emt 0:00:09]} Nd3+ {[%emt 0:00:39]} 34. Ke3 {[%emt 0:00:12]} Nxf4 {[%emt 0:00:24]} 35. Bd2 {[%emt 0:01:00]} Bb6+ {[%emt 0:00:43]} 36. Kf3 {[%emt 0:00:10]} Bh5+ {[%emt 0:00:30]} 37. Rxh5 {[%emt 0:01:42]} Nxh5 {[%emt 0:00:10]} 38. Nd6 {[%emt 0:00:35]} Rc2 {[%emt 0:00:59]} 39. Rd1 {[%emt 0:00:21]} Rxa2 {[%emt 0:00:45]} 40. Bh6 {[%emt 0:00:34]} Rb2 {[%emt 0:01:26]} 41. Kg4 {[%emt 0:30:12]} Nf4 {[%emt 0:30:39]} 42. Rc1 {[%emt 0:00:00]} Ng5 {[%emt 0:00:00]} 43. Kf5 {[%emt 0:00:00]} Kh7 {[%emt 0:00:00]} 44. Bxg5 {[%emt 0:00:00]} fxg5 {[%emt 0:00:00]} 45. Kf6 {[%emt 0:00:00]} Bd8+ {[%emt 0:00:00]} 46. Kf7 {[%emt 0:00:00]} Rf2 {[%emt 0:00:00]} 47. Nf5 {[%emt 0:00:00]} Ng6 {[%emt 0:00:00]} 48. Rc6 {[%emt 0:00:00]} Nh8+ {[%emt 0:00:00]} 49. Kf8 {[%emt 0:00:00]} Rh2 0-1